Cogmind - Beta 14 @@@ ROGUE MODE // 2024.09.07 @ 17:25:59 Player: Daffa0360 Result: Destroyed by Y-45 Defender with Heavy Assault Rifle Performance ------------- Evolutions (0) 0 Regions Visited (3) 600 Robots Destroyed (25) 125 Value Destroyed (484) 484 Prototype IDs (2) 40 Alien Tech Used (0) 0 Bonus (0) 0 TOTAL SCORE: 1249 Bonus ------- None Cogmind --------- Core Integrity 0/250 Matter 280/300 Energy 74/100 System Corruption 3% Temperature Cool (29) Movement Core (200) Ox3 Location -9/Recycling Parts ------- > --- POWER (1) -------- (None) > --- PROPULSION (2) --- (None) > --- UTILITY (2) ------ Small Storage Unit > --- WEAPON (2) ------- Shock Rifle Subdweller Machine Gun > --- INVENTORY (8) ---- Subdweller Power Source Makeshift Power Source Subdweller Monowheel Structural Scanner Peak State ------------ > --- POWER ------------ (None) > --- PROPULSION ------- Aluminum Leg Makeshift Leg > --- UTILITY ---------- Small Storage Unit Makeshift Kinetic Plating > --- WEAPON ----------- Subdweller Laser Subdweller Machine Gun > --- INVENTORY -------- Subdweller Power Source Makeshift Power Source Subdweller Monowheel Structural Scanner [Rating: 14] Favorites ----------- Power Light Ion Engine Engine Light Ion Engine Propulsion Aluminum Leg Leg Aluminum Leg Flight Unit Flight Unit Utility Small Storage Unit Device Structural Scanner Storage Small Storage Unit Protection Makeshift Kinetic Plating Weapon Medium Laser Energy Gun Medium Laser Ballistic Gun Subdweller Machine Gun Launcher Subdweller Shrapnel Launcher Special Weapon Mining Laser Build | -11 -10 -10 -9 ------- Run | Yrd Mat Sub Rec Slots Evolved . | . . . . Power . | . . . . Propulsion . | . . . . Utility . | . . . . Weapon . | . . . . Parts Attached 23 | . 2 19 2 Power 1 | . . 1 . Engine 1 | . . 1 . Core . | . . . . Reactor . | . . . . Propulsion 4 | . . 4 . Treads . | . . . . Leg 2 | . . 2 . Wheel . | . . . . Hover . | . . . . Flight 2 | . . 2 . Utility 8 | . 1 6 1 Device 6 | . 1 5 . Storage . | . . . . Processor . | . . . . Hackware . | . . . . Protection 2 | . . 1 1 Artifact . | . . . . Weapon 10 | . 1 8 1 Energy Gun 3 | . . 2 1 Energy Cannon . | . . . . Ballistic Gun 1 | . . 1 . Ballistic Cannon . | . . . . Launcher 1 | . . 1 . Special Weapon 5 | . 1 4 . Impact Weapon . | . . . . Slashing Weapon . | . . . . Piercing Weapon . | . . . . Special Melee Weapon . | . . . . Unidentified Prototypes . | . . . . Parts Lost 8 | . . 5 3 Power 1 | . . 1 . Propulsion 3 | . . 1 2 Utility 1 | . . . 1 Weapon 3 | . . 3 . Highest Loss Streak 3 | . . 3 3 To Critical Strikes . | . . . . Average Slot Usage (%) 73 | . 87 71 69 Engine 10 | . 14 12 . Leg 17 | . 28 12 26 Flight 6 | . . 9 . Device 8 | . 2 9 13 Storage 14 | . 14 14 14 Energy Gun 4 | . 23 1 . Ballistic Gun 3 | . . . 14 Launcher 3 | . . 5 . Special Weapon 2 | . 4 2 . Peak Build Rating 14 | 6 8 14 10 Average Rating 7 | 6 7 7 9 On Entrance 7 | 6 6 8 10 Naked Turns . | . . . . Heaviest Build 20 | 14 14 20 19 Greatest Support 30 | 20 20 30 30 Greatest Overweight (x) 6 | . . 5 6 Average Overweight (x) . | . . . . Largest Inventory Capacity 8 | 8 8 8 8 Average Capacity 8 | 8 8 8 8 Most Carried 8 | 7 8 8 5 Average Carried 6 | 5 7 6 4 Final Capacity 8 | 8 8 8 8 Final Carried 8 | 6 8 4 4 Class Distribution -------------------- 100% | Mutant Dominant Class ---------------- Mutant | -10/Materials Mutant | -10/Subcaves Mutant | -9/Recycling Resources | -11 -10 -10 -9 ----------- Run | Yrd Mat Sub Rec Matter Collected 596 | 200 . 396 . Remotely . | . . . . Salvage Created 603 | 209 123 189 82 Parts 39 | 9 15 7 8 Haulers Intercepted 1 | . 1 . . Recyclers Shooed . | . . . . Parts Field Recycled . | . . . . Retrieved Matter . | . . . . Parts Self-Destructed 16 | . . 16 . Prevented . | . . . . Kills | -11 -10 -10 -9 ------- Run | Yrd Mat Sub Rec Combat Hostiles Destroyed 13 | . 4 7 2 Guns 9 | . 4 3 2 AOE 4 | . . 4 . Classes Destroyed 11 | 3 4 3 1 Worker 2 | 2 . . . Builder 1 | . 1 . . Tunneler 5 | 5 . . . Hauler 1 | . 1 . . Recycler 1 | 1 . . . Turret 2 | . . 2 . Swarmer 6 | . 3 3 . Grunt 1 | . 1 . . Programmer 2 | . . . 2 Artisan 1 | . . 1 . Subdweller 4 | . . 4 . Best Kill Streak 5 | 3 3 5 2 Combat Bots Only 3 | . 3 3 2 Max Kills in Single Turn 2 | 1 2 2 1 Gunslinging 1 | . 1 1 . Exploded 1 | . . 1 . Melee . | . . . . Uniques/NPCs Destroyed . | . . . . Combat | -11 -10 -10 -9 -------- Run | Yrd Mat Sub Rec Hostile Shots Fired 124 | . 23 75 26 Missed 48 | . 6 35 7 Damage Taken 1054 | . 154 616 284 Core 261 | . 18 154 89 Absorbed by Shields . | . . . . Ignored by Resistances 14 | . . 12 2 Core Remaining (%) 100 | 100 . . . Volleys Fired 93 | 19 24 45 5 Largest 2 | 2 2 2 2 Hottest 100 | 100 100 100 80 Shots Fired 136 | 38 39 51 8 Gun 105 | 38 30 29 8 Cannon . | . . . . Launcher 9 | . . 9 . Special 22 | . 9 13 . Kinetic 29 | . . 24 5 Thermal 96 | 38 39 19 . Explosive . | . . . . Electromagnetic 11 | . . 8 3 Robot Hit Streak 16 | 9 5 16 6 Robot Miss Streak 3 | 2 3 2 1 Penetration Max . | . . . . Secondary Targets 3 | . 1 2 . Max Gunslinging Chain 1 | . 1 1 . Shots Hit Robots 75 | 27 18 24 6 Core Hits 32 | 9 8 13 2 Critical Kills 1 | . . . 1 Critical Parts Destroyed . | . . . . Critical Strikes 6 | 3 2 . 1 Burn 5 | 3 2 . . Destroy 1 | . . . 1 Melee Attacks . | . . . . Impact . | . . . . Slashing . | . . . . Piercing . | . . . . Sneak Attacks . | . . . . Combat Hostiles . | . . . . Follow-up Attacks . | . . . . Damage Inflicted 1491 | 339 258 761 133 Guns 1053 | 339 210 371 133 Cannons . | . . . . Explosions 390 | . . 390 . Melee . | . . . . Ramming . | . . . . Kinetic 733 | . . 603 130 Thermal 679 | 339 258 82 . Explosive . | . . . . Electromagnetic 79 | . . 76 3 Impact . | . . . . Slashing . | . . . . Piercing . | . . . . Highest Corruption 3 | . . . 3 Average Corruption 2 | . . . 2 Corruption Purged . | . . . . Corruption Blocked . | . . . . Overload Shots . | . . . . Overflow Damage . | . . . . Projectiles . | . . . . Explosions . | . . . . Melee . | . . . . Knockbacks . | . . . . Impact . | . . . . Kinetic . | . . . . Secondary . | . . . . Self-Inflicted Damage 177 | . . 177 . Shots 5 | . . 5 . Rammed . | . . . . Targets Rammed . | . . . . Kicked . | . . . . Crushed . | . . . . Highest Temperature 312 | 312 216 . 24 Average Temperature 87 | 103 80 . 9 Received Heat Transfer 165 | . 24 96 45 Siege Activations . | . . . . Robots Corrupted . | . . . . Combat Hostiles . | . . . . Parts Fried . | . . . . Impact Corruptions . | . . . . Robots Melted . | . . . . Combat Hostiles . | . . . . Parts Melted 7 | 5 2 . . Heat Transferred 2198 | 1221 877 100 . Parts Sabotaged . | . . . . Parts Stolen . | . . . . Parts Stripped . | . . . . Power Chain Reactions . | . . . . Alert | -11 -10 -10 -9 ------- Run | Yrd Mat Sub Rec Peak Influence 138 | 40 138 . 78 Initial 60 | . 26 . 60 Average 61 | 20 110 . 40 Maximum Alert Level . | . . . . Low Security (%) 100 | 100 100 . 100 Level 1 . | . . . . Level 2 . | . . . . Level 3 . | . . . . Level 4 . | . . . . Level 5 . | . . . . High Security . | . . . . Max Security . | . . . . Squads Dispatched . | . . . . Investigation . | . . . . Extermination . | . . . . Reinforcement . | . . . . Assault . | . . . . Garrison . | . . . . Intercept . | . . . . Searches Triggered . | . . . . Construction Impeded . | . . . . Haulers Reinforced . | . . . . Active Scanning Responses . | . . . . Cargo Convoy Interrupts . | . . . . Stealth | -11 -10 -10 -9 --------- Run | Yrd Mat Sub Rec Distress Signals 1 | . 1 . . Communications Jammed . | . . . . Distress Signals . | . . . . Times Spotted 27 | . 7 16 4 Peak Tracking Total 6 | . 4 6 4 Tactical Retreats 4 | . . 4 . Traps | -11 -10 -10 -9 ------- Run | Yrd Mat Sub Rec Traps Triggered . | . . . . Indirectly . | . . . . Trap Hack Attempts . | . . . . Triggered . | . . . . Disarmed . | . . . . Reprogrammed . | . . . . Reused . | . . . . Traps Extracted . | . . . . Installed . | . . . . Triggered . | . . . . Machines | -11 -10 -10 -9 ---------- Run | Yrd Mat Sub Rec Machines Disabled 1 | . . 1 . Max in Single Turn 1 | . . 1 . Machines Repaired . | . . . . Machines Dismantled . | . . . . Machines Sabotaged . | . . . . Overloaded Fab Kills . | . . . . Hacking | -11 -10 -10 -9 --------- Run | Yrd Mat Sub Rec Machines Accessed 8 | . 3 . 5 Terminals 8 | . 3 . 5 Fabricators . | . . . . Repair Stations . | . . . . Recycling Units . | . . . . Scanalyzers . | . . . . Garrison Access . | . . . . Total Hacks 25 | . 11 . 14 Successful 14 | . 6 . 8 Failed 11 | . 5 . 6 Catastrophic 1 | . 1 . . Database Lockouts . | . . . . Manual 8 | . 5 . 3 Terminals 25 | . 11 . 14 Fabricators . | . . . . Repair Stations . | . . . . Recycling Units . | . . . . Scanalyzers . | . . . . Garrison Access . | . . . . Terminal Hacks 10 | . 4 . 6 Robot Analysis 1 | . . . 1 Prototype ID Bank 1 | . . . 1 Emergency Access Points 1 | . 1 . . Machine Index 1 | . . . 1 Alert Level 2 | . . . 2 Unreport Threat 2 | . 1 . 1 Dispatch Records 1 | . 1 . . Hauler Manifests 1 | . 1 . . Fabricator Hacks . | . . . . Repair Station Hacks . | . . . . Recycling Unit Hacks . | . . . . Scanalyzer . | . . . . Garrison Access Hacks . | . . . . Unauthorized Hacks 4 | . 2 . 2 Terminals 4 | . 2 . 2 Botnet 4 | . 2 . 2 Fabricators . | . . . . Repair Stations . | . . . . Recycling Units . | . . . . Scanalyzers . | . . . . Garrison Access . | . . . . Data Cores Recovered . | . . . . Used . | . . . . Hacking Detections 7 | . 2 . 5 Full Trace Events . | . . . . Feedback Events . | . . . . Feedback Blocked . | . . . . Robot Schematics Acquired . | . . . . Robots Built . | . . . . Authchips . | . . . . Time . | . . . . Total Robot Build Rating . | . . . . Part Schematics Acquired . | . . . . Parts Built . | . . . . Authchips . | . . . . Time . | . . . . Total Part Build Rating . | . . . . Parts Repaired . | . . . . Time . | . . . . Parts Recycled . | . . . . Recycled Matter . | . . . . Retrieved Matter . | . . . . Retrieved Components . | . . . . Parts Scanalyzed . | . . . . Part Schematics Acquired . | . . . . Parts Damaged . | . . . . Bothacking | -11 -10 -10 -9 ------------ Run | Yrd Mat Sub Rec Used RIF Installer . | . . . . Robots Hacked . | . . . . Non-combat . | . . . . Combat . | . . . . Robot Hacks Applied . | . . . . Relay Couplers Released . | . . . . Fabnet Peak Effective % . | . . . . Robots Rewired . | . . . . Allies Hacked . | . . . . Hacks Repelled . | . . . . Allies | -11 -10 -10 -9 -------- Run | Yrd Mat Sub Rec Total Allies . | . . . . Largest Group . | . . . . Highest-Rated Group . | . . . . Highest-Rated Ally . | . . . . Total Orders . | . . . . Ally Attacks . | . . . . Total Damage . | . . . . Kills . | . . . . Allies Corrupted . | . . . . Allies Melted . | . . . . Intel | -11 -10 -10 -9 ------- Run | Yrd Mat Sub Rec Robot Analysis Total 1 | . . . 1 Derelict Logs Recovered 2 | . . 2 . Drone Launches . | . . . . Drone Recoveries . | . . . . Exploration | -11 -10 -10 -9 ------------- Run | Yrd Mat Sub Rec Turns Passed 2445 | 179 328 1515 423 Spaces Moved 1765 | 65 179 1214 307 Core 59 | . . 57 2 Treads . | . . . . Legs 1057 | 65 179 508 305 Wheels . | . . . . Hover . | . . . . Flight 649 | . . 649 . Fastest Speed 37 | 120 120 37 120 Average Speed 115 | 120 120 110 131 Slowest Speed 350 | 120 120 300 350 Overloaded Moves . | . . . . Propulsion Burnouts . | . . . . Robots Hopped . | . . . . Cave-ins Triggered . | . . . . Exploration Rate (%) 33 | 4 24 50 56 Regions Visited 3 Branch Regions 2 Pre-discovered Areas . | . . . . Known Exits Taken . | . . . . Unknown Exits Taken 3 | 1 1 1 . Scrap Searched 5 | . . 5 . Spaces Dug 1 | . 1 . . Terrain Destroyed 107 | . 2 105 . Melee . | . . . . Projectile 2 | . 2 . . AOE 105 | . . 105 . Terrain Rammed . | . . . . Walls Destroyed . | . . . . Machines Disabled . | . . . . Actions | -11 -10 -10 -9 --------- Run | Yrd Mat Sub Rec Total 2004 | 129 234 1322 319 Wait 91 | 42 26 19 4 Move 1762 | 64 178 1213 307 Hop . | . . . . Pick Up 14 | 2 3 8 1 Fast Attach 1 | . 1 . . Attach 16 | . . 15 1 Detach 9 | . . 9 . Swap 6 | . 1 4 1 Drop 12 | 2 1 9 . Fire 93 | 19 24 45 5 Melee . | . . . . Ram . | . . . . Kick . | . . . . Crush . | . . . . Escape Stasis . | . . . . Rewire . | . . . . Trap . | . . . . Miscellaneous . | . . . . Route ------- -11/Scrapyard -10/Materials (discovered 2 exits: [*Mat] / [*Sub]) -10/Subcaves (discovered 2 exits: [*Mat] / *Rec) -9/Recycling History --------- Turn | Location | Event 11 | -11/Scrapyard | Discovered new exit (range 3) 180 | -11/Scrapyard | Entered Materials 300 | -10/Materials | Build established: Mutant 399 | -10/Materials | Discovered new exit (range 16) 441 | -10/Materials | Discovered new exit (range 3) 508 | -10/Materials | Entered Subcaves 669 | -10/Subcaves | Shifting Twisted Machinery released Sub. Power Source 672 | -10/Subcaves | Shifting Twisted Machinery released Sub. Monowheel 749 | -10/Subcaves | Discovered new exit (range 10) 1116 | -10/Subcaves | Learned Materials terminal intel 1217 | -10/Subcaves | Core integrity fell below 50% 1504 | -10/Subcaves | Ambushed by angry Subdweller bent on revenge 1914 | -10/Subcaves | Discovered new exit (range 14) 1972 | -10/Subcaves | Lost 3 parts (1p2w) 2023 | -10/Subcaves | Entered Recycling 2416 | -9/Recycling | Core integrity fell below 20% 2446 | -9/Recycling | Destroyed by Y-45 Defender with Heavy Assault Rifle Last Messages --------------- 5 Recycling Units Downloaded coordinate data. 02278_ Connecting with Terminal... 02410_ Y-45 Defender springs to life. 02416_ Mak. Leg destroyed. 02423_ Aluminum Leg destroyed. 02426_ P-60 Hacker destroyed. 02427_ R-06 Scavenger collects Shock Rifle. 02431_ Acquired Shock Rifle. 02431_ R-06 Scavenger collects Imp. Heat Sink. 02436_ P-60 Hacker suffers critical hit (Destroy). 02436_ P-60 Hacker destroyed. 02436_ R-06 Scavenger collects Gravmag System. 02437_ R-06 Scavenger collects Shock Rifle. 02439_ R-06 Scavenger collects Remote Datajack. 02440_ R-06 Scavenger collects Imp. Heat Sink. 02442_ Mak. Kinetic Plating destroyed. 02442_ R-06 Scavenger collects Imp. Heat Sink. 02446_ Critical hit (Burn: +37). Map ----- +----------------------------------------------------+ | ?????????????????????????????????????????????????? | | ?????????????????????????????????????????????????? | | ?????????????????????????????????????????????????? | | ?????????????????????????????????????????????????? | | ?????????????????????????????????????????????????? | | ?????????????????????????????????????????????????? | | ?????????????????????????????????????????????????? | | ?????????????????????????????????????????????????? | | ?????????????????????????????????????????????????? | | ?????????????????????????????????????????????????? | | ?????????????????????????????????????????????????? | | ?????????????????????????????????????????????????? | | ?????????????????????????????????????????????????? | | ??????????????????????????????################???? | | ?????????????#################################???? | | ?????????????################### ##???? | | ?????????????## ### ###### | | ?????????????## ### ###### | | ?????????????## ### ### | | ?????????????## r## ### | | ?????????????## ## ### | | ?????????????## ### ### | | ?????????????## r ### ### | | ?????????????## ### ### | | ?????????????## rY%r ### ### | | ?????????????## r Y @ ### ### | | ?????????????#########r######## ## | | ?????????????######## ###########+#########+# | | ????????????????## ########## | | ?????????????##### ###### ##+##+#### | | ?????????????##### # [## # | | ?????????????## #[[ ## # """ | | ?????????????## + "T" | | ???????????? ## ##### # | | ???????????? + ##### #####"T"## | | ??????????? ## ##?## #####"""## | | ?????????? ## ""### ########## | | ???????? ??## Y"### ########## | | ??????? ?? ## ""### ##??????? | | ?????? ??? / ###"" ##??????? | | ?????? ???? #### ###"Y ##??????? | | ??????]????? ### ###"" ##??????? | | ??????????????### ## #### ##??????? | | ??????????????### ## ##### ###### ###??????? | | ???????????????## ## ##### ###### #####????? | | ???????????????## ?? ? #####+###### #####????? | | ????????????????? ???????## # """##????? | | ?????????????????????????## """ + Y"##????? | | ?????????????????????????## """ # """##????? | | ?????????????????????????## """ # #####????? | +----------------------------------------------------+ Best States ------------- Heat Dissipation 25 Energy Generation 10 Energy Capacity 250 Matter Stores 300 Matter Capacity 300 Sight Range 16 Terrain Scan Density 10 Armor Coverage 100 Resistance: KI 10 Evasion (%) 62 Item Schematics ----------------- None Robot Schematics ------------------ None Fabricated ------------ Nothing Alien Tech Used ----------------- None Achievements -------------- None Challenges ------------ None Game ------ Seed TachyonHeatWheel Manual? 0 Play Time 00:21:15 Cumulative 84.3 hours Start 2024.09.07 @ 00:14:18 End 2024.09.07 @ 17:25:59 Sessions 2 Manual Loads 0 Difficulty Rogue Special Mode None Game No. 137 Rogue 133 Adventurer 4 Explorer 0 Win Type - Total 0 Types 0/0/0/0/0/0/0/0/0 Lore% 39 Gallery% 49 Achievement% 37 Wizard Run 0 Options --------- Layout 2 ASCII 0 Keyboard 0 Movement Mouse Keybinds 0 Fullscreen 2 Font 24/Smallcaps Map View 50x44 Zoom Use 0% Tactical HUD 1 Map Filters NONE Filters NONE Steam 1 RUN: 8543e988-d8bb-45c4-a32b-4a7063b09700